[Event "1st Chessable Sunway Formentera 2022"]
[Site "Formentera Punta Prima"]
[Date "2022.05.08"]
[Round "10.14"]
[White "Vanduyfhuys, Daria"]
[Black "Mouhamad, Joachim"]
[Result "1-0"]
[ECO "D85"]
[WhiteElo "2063"]
[BlackElo "2290"]
[Annotator "TA"]
[PlyCount "55"]
[EventDate "2022.05.05"]
[EventType "swiss"]
[EventCountry "ESP"]
[SourceTitle "playchess.com"]
[Source "ChessBase"]
[SourceQuality "1"]
[TimeControl "40/5400+30:1800+30"]

{[%evp 16,55,33,18,75,75,106,106,97,50,72,18,18,14,24,0,0,0,0,0,0,-54,-56,-204,-201,-204,215,208,218,227,226,187,180,173,291,214,343,341,691,684,643,628]} 1. d4 {[%emt 0:00:02]} Nf6 {[%emt 0:00:47]} 2. c4 {[%emt 0:00:07]} g6 {[%emt 0:00:12]} 3. Nc3 {[%emt 0:00:07]} d5 {[%emt 0:00:06]} 4. cxd5 {[%emt 0:00:11]} Nxd5 {[%emt 0:00:09]} 5. Bd2 {[%emt 0:00:06]} Bg7 {[%emt 0:00:29]} 6. e4 {[%emt 0:00:10]} Nb6 {[%emt 0:01:21]} 7. Be3 {[%emt 0:00:09]} O-O {[%emt 0:00:47]} 8. h3 {[%emt 0:00:32] 8.Bb5 is the modern continuation.} Nc6 {[%emt 0:01:40]} 9. Nf3 {[%emt 0:00:26]} e5 {[%emt 0:01:26] D85: Exchange Grünfeld: Unusual White 7th moves and lines with 7 Nf3.} (9... f5 $11 {remains equal.}) 10. d5 $16 {[%emt 0:02:11]} Nb8 {[%emt 0:05:34] [#]} 11. Be2 $146 {[%emt 0:04:31]} ({Predecessor:} 11. a4 c6 12. a5 N6d7 13. Bc4 b5 14. dxc6 bxc4 15. cxd7 Qxd7 16. O-O Nc6 17. Nd5 {½-½ (34) Chandra,A (2440)-Troff,K (2484) Saint Louis 2014}) 11... c6 {[%emt 0:00:39] White is better.} 12. O-O {[%emt 0:07:19] White is more active.} (12. a4 $16) 12... cxd5 $1 $14 {[%emt 0:01:01]} 13. Bxb6 {[%emt 0:15:26]} ({White should try} 13. Nxd5 $16 Nxd5 14. exd5 (14. Qxd5 Qxd5 15. exd5 b6 $14)) 13... Qxb6 $11 {[%emt 0:01:52]} 14. Nxd5 {[%emt 0:00:10]} Qd8 {[%emt 0:00:18]} 15. Qc2 {[%emt 0:02:24] [#] Nc7 is the strong threat.} Nc6 {[%emt 0:01:30]} 16. Rfd1 {[%emt 0:00:07]} Be6 {[%emt 0:06:44]} 17. Bc4 {[%emt 0:08:15][%cal Be2c4,Bc4e6,Be6d7,Bd7c6][%mdl 32]} Rc8 {[%emt 0:04:09]} 18. Nf4 {[%emt 0:11:48]} Bd7 $1 $15 {[%emt 0:02:17]} ({Don't play} 18... Nb4 19. Qa4 Qe8 20. Bb5 $14) 19. Ne6 fxe6 $19 {[%emt 0:03:39]} 20. Bxe6+ {[%emt 0:02:15]} Kh8 $4 {[%emt 0:00:12][%mdl 8192]} (20... Bxe6 $19 {and life is good for Black.} 21. Rxd8 Rcxd8) 21. Bxd7 $18 {[%emt 0:00:57]} ({Don't take} 21. Rxd7 $6 Nd4 22. Qd2 (22. Rxd8 Rxc2 23. Nxd4 exd4 $11) 22... Nxf3+ 23. gxf3 Qe8 $16) 21... Rc7 {[%emt 0:07:41] And now ...Nd4 would win.} 22. Bxc6 {[%emt 0:00:16]} Qe7 {[%emt 0:07:55]} 23. Qd3 {[%emt 0:01:38]} Rxc6 {[%emt 0:02:41]} 24. Rac1 {[%emt 0:09:27]} Rb6 {[%emt 0:02:37]} (24... Rxc1 $142 25. Rxc1 h6) 25. b3 {[%emt 0:02:35]} g5 {[%emt 0:15:12]} (25... h6 {is a better defense.} 26. Qe3 Rd8 27. Rxd8+ Qxd8) 26. Qd7 {[%emt 0:01:31]} Qb4 {[%emt 0:04:23]} (26... Qf6 27. Rd5 h6 28. Rxe5 Rf7 29. Qc8+ Rf8) 27. Rc7 {[%emt 0:02:43][%csl Gc7][%cal Rd7g7]} Rg6 {[%emt 0:06:38] [#]} 28. Nxe5 $1 {[%emt 0:01:59][%mdl 512] Weighted Error Value: White=0.30/Black=0.68} 1-0

[Event "1st Chessable Sunway Formentera 2022"]
[Site "Formentera Punta Prima"]
[Date "2022.05.08"]
[Round "10.15"]
[White "Prodhomme, Boris"]
[Black "Bernard, Jacques"]
[Result "1/2-1/2"]
[ECO "D36"]
[WhiteElo "2045"]
[BlackElo "2122"]
[Annotator "TA RC"]
[PlyCount "91"]
[EventDate "2022.05.05"]
[EventType "swiss"]
[EventCountry "ESP"]
[SourceTitle "playchess.com"]
[Source "ChessBase"]
[SourceQuality "1"]
[TimeControl "40/5400+30:1800+30"]

{[%evp 26,91,36,37,42,0,0,-54,12,-5,7,0,0,6,50,50,67,75,87,42,53,42,53,25,39,26,40,26,31,18,27,14,67,52,30,25,16,-31,36,25,55,50,62,57,85,75,82,71,85,79,87,52,85,0,85,0,67,52,62,35,73,78,83,58,102,54,82,4]} 1. d4 {[%emt 0:00:09]} Nf6 {[%emt 0:00:11]} 2. c4 {[%emt 0:00:14]} e6 {[%emt 0:00:07]} 3. Nc3 {[%emt 0:00:10]} d5 {[%emt 0:00:27]} 4. cxd5 {[%emt 0:00:12]} exd5 {[%emt 0:00:51]} 5. Bg5 {[%emt 0:00:05]} c6 {[%emt 0:02:02]} 6. Qc2 {[%emt 0:00:13]} Be7 {[%emt 0:00:29]} 7. e3 {[%emt 0:00:07]} O-O {[%emt 0:00:49]} 8. Bd3 {[%emt 0:00:13]} Nbd7 {[%emt 0:01:37]} 9. Nge2 {[%emt 0:03:34]} Re8 {[%emt 0:01:59]} 10. O-O {[%emt 0:00:45]} Nf8 {[%emt 0:02:36]} 11. f3 {[%emt 0:02:25]} Nh5 {[%emt 0:07:04]} 12. Bxe7 {[%emt 0:01:13]} Qxe7 {[%emt 0:02:28]} 13. e4 {[%emt 0:00:21]} Be6 {[%emt 0:13:05]} 14. e5 {[%emt 0:10:04]} g6 $1 {[%emt 0:07:11] D36: Queen's Gambit Declined: Exchange Variation: Main line (5 Bg5 c6 6 Qc2).} 15. g4 {[%emt 0:02:29][%cal Bg2g4,Bg4g5][%mdl 32]} Ng7 {[%emt 0:08:04]} 16. Ng3 {[%emt 0:03:50]} (16. Qd2 $11) 16... Rac8 {[%emt 0:06:24] [#]} (16... Bd7 $15) 17. Qf2 $146 {[%emt 0:05:27]} ({Predecessor:} 17. Qe2 Qg5 18. h3 f5 19. exf6 Qxf6 20. Qf2 Rc7 21. f4 Rf7 22. Kh2 Bc8 23. Nce2 {1-0 (38) Colic,N-Stevanovic,D Serbia 2006}) 17... Nd7 {[%emt 0:10:34]} 18. h3 {[%emt 0:13:52]} Rf8 {[%emt 0:04:40]} 19. f4 {[%emt 0:17:26]} f5 {[%emt 0:00:49]} (19... f6 $5 {[%cal Rf6e5]}) 20. g5 {[%emt 0:01:05]} a6 {[%emt 0:10:18]} 21. Rad1 {[%emt 0:07:31]} Rfd8 {[%emt 0:03:22]} 22. Be2 {[%emt 0:04:20]} Qb4 {[%emt 0:02:19]} 23. Bf3 {[%emt 0:02:05]} Nb6 {[%emt 0:02:56]} 24. a3 {[%emt 0:04:39]} Qb3 {[%emt 0:00:18]} 25. Rb1 {[%emt 0:02:03]} Nc4 {[%emt 0:00:26][%cal Oc4a3]} 26. Bd1 {[%emt 0:00:52]} Qb6 {[%emt 0:00:10]} 27. Na4 {[%emt 0:01:13]} Qc7 {[%emt 0:02:17]} 28. Ra1 {[%emt 0:02:25]} a5 {[%emt 0:02:46]} (28... b6 $11) 29. b3 $36 {[%emt 0:06:27][%mdl 2048] White has some pressure.} Nb6 {[%emt 0:00:13]} 30. Nc5 {[%emt 0:00:10]} Nd7 {[%emt 0:00:54]} 31. Rc1 {[%emt 0:03:58]} (31. Nd3 $11 {was preferrable.}) 31... b6 {[%emt 0:00:40]} (31... Nxc5 $15 32. Rxc5 Bf7) 32. Na4 {[%emt 0:00:29]} Qa7 {[%emt 0:00:34]} 33. Bf3 {[%emt 0:01:03]} Rc7 {[%emt 0:02:01]} 34. Rc2 {[%emt 0:02:47]} Rdc8 {[%emt 0:00:13]} 35. Rfc1 {[%emt 0:00:41]} Bf7 {[%emt 0:02:08]} 36. Ne2 {[%emt 0:01:02] White is more active.} Ne6 {[%emt 0:00:53]} 37. Kh2 {[%emt 0:01:06]} Qb7 {[%emt 0:02:11]} 38. Qg2 {[%emt 0:01:07]} Qa7 {[%emt 0:01:07]} 39. Qf2 {[%emt 0:00:18]} Qb7 $1 {[%emt 0:00:10]} 40. Qg2 {[%emt 0:00:00]} Qa7 {[%emt 0:00:00]} 41. Qg1 {[%emt 0:20:51]} Qa6 {[%emt 0:04:40]} 42. Qe3 {[%emt 0:01:19]} Qa7 {[%emt 0:05:16]} 43. h4 {[%emt 0:03:46]} Qb7 {[%emt 0:02:35]} 44. Nac3 {[%emt 0:03:02]} Qa6 {[%emt 0:05:34]} 45. Nd1 {[%emt 0:05:52]} (45. h5 $16) 45... c5 $14 {[%emt 0:17:32]} 46. Ndc3 {[%emt 0:00:30] Weighted Error Value: White=0.19 (very precise) /Black=0.18 (very precise)} ({Better is} 46. Bxd5 $16 cxd4 47. Nxd4 Rxc2+ 48. Nxc2 (48. Rxc2 Rxc2+ 49. Nxc2 Nxf4 $11)) 1/2-1/2

[Event "1st Chessable Sunway Formentera 2022"]
[Site "Formentera Punta Prima"]
[Date "2022.05.08"]
[Round "10.16"]
[White "Galvan Cipriani, Viviana"]
[Black "Chkhaidze, Nikoloz"]
[Result "1/2-1/2"]
[ECO "E19"]
[WhiteElo "2153"]
[BlackElo "2301"]
[Annotator "TA"]
[PlyCount "185"]
[EventDate "2022.05.05"]
[EventType "swiss"]
[EventCountry "ESP"]
[SourceTitle "playchess.com"]
[Source "ChessBase"]
[SourceQuality "1"]
[TimeControl "40/5400+30:1800+30"]

{[%evp 20,185,22,25,22,14,27,0,0,0,0,0,0,0,27,0,0,0,77,71,39,42,73,-3,0,0,75,-17,0,0,0,-42,-12,-6,0,14,48,43,250,255,258,153,322,322,501,486,452,432,535,417,402,385,389,382,372,333,327,374,480,480,436,366,352,114,121,114,116,116,126,84,142,145,129,109,108,112,146,87,86,89,85,85,85,27,27,31,86,60,51,33,34,0,0,0,62,-12,0,0,0,0,0,0,0,0,0,0,0,0,0,0,0,0,0,0,0,0,0,0,0,0,0,0,0,0,0,0,0,0,0,0,0,0,0,0,0,0,0,0,0,0,0,0,0,0,0,0,0,0,8,8,691,8,8,8,80,0,0,0,0,0,0,0,0,0,0,0,0,0]} 1. c4 {[%emt 0:00:03]} b6 {[%emt 0:00:12]} 2. Nc3 {[%emt 0:01:53]} Bb7 {[%emt 0:00:05]} 3. Nf3 {[%emt 0:01:42]} Nf6 {[%emt 0:00:35]} 4. g3 {[%emt 0:00:31]} e6 {[%emt 0:00:06]} 5. Bg2 {[%emt 0:01:50]} Be7 {[%emt 0:00:02]} 6. O-O {[%emt 0:01:22]} O-O {[%emt 0:00:02]} 7. d4 {[%emt 0:00:03]} Ne4 {[%emt 0:01:09]} 8. Qc2 {[%emt 0:00:26]} Nxc3 {[%emt 0:02:01]} 9. Qxc3 {[%emt 0:00:12]} d6 {[%emt 0:04:00]} 10. b3 {[%emt 0:09:38]} Nd7 {[%emt 0:02:42]} 11. Bb2 {[%emt 0:00:40]} Qe8 {[%emt 0:01:10] [#] E19: Queen's Indian: Old Main Line with 7...Ne4 8 Qc2 Nxc3 8 Qxc3.} 12. Qe3 $146 {[%emt 0:04:56]} ({Predecessor:} 12. Rad1 f5 13. Ne1 Bxg2 14. Nxg2 Bg5 15. Qf3 Nf6 16. d5 Ne4 17. dxe6 Qxe6 18. Qd3 a5 19. e3 {1-0 (61) Rodgaard,J (2320)-Balint,V (2215) Budapest 2018}) 12... Bd8 {[%emt 0:10:00]} 13. Ng5 {[%emt 0:09:15]} Bxg2 {[%emt 0:01:43]} 14. Kxg2 {[%emt 0:00:10][%cal Og5h7] Threatens to win with Nxh7!} Bxg5 {[%emt 0:05:04]} 15. Qxg5 $40 {[%emt 0:00:41][%mdl 128] White is up to no good.} f5 {[%emt 0:02:27]} 16. f3 {[%emt 0:05:34]} Rf6 {[%emt 0:06:49]} 17. Qd2 {[%emt 0:11:26][%cal Oc4c5]} Qh5 {[%emt 0:01:46]} 18. Rh1 {[%emt 0:07:21]} g5 {[%emt 0:08:08]} (18... Rff8 $11) 19. h4 $16 {[%emt 0:00:55]} g4 {[%emt 0:01:47][%cal Of5f4]} 20. Qg5+ $1 {[%emt 0:01:36]} Qg6 {[%emt 0:00:32]} 21. fxg4 {[%emt 0:08:42]} (21. c5 $16) 21... fxg4 $11 {[%emt 0:00:33]} 22. Qxg6+ {[%emt 0:02:27]} Rxg6 {[%emt 0:01:36] [#]} (22... hxg6 $11 23. Rhf1 Raf8) 23. Raf1 {[%emt 0:00:43]} ({Better is} 23. h5 $1 $16 {[%cal Rh5g6]} Rg7 24. Bc1) 23... Rf8 {[%emt 0:00:16]} 24. Rxf8+ {[%emt 0:00:45]} Kxf8 {[%emt 0:00:05][%mdl 4096] Endgame KRB-KRN} 25. h5 {[%emt 0:00:36]} Rg5 {[%emt 0:00:52][%cal Bg6g5,Bg5f5,Bf5f3][%mdl 32]} 26. Bc1 $1 {[%emt 0:00:46]} Rf5 {[%emt 0:03:30]} 27. e4 {[%emt 0:00:41]} Rf3 {[%emt 0:00:34]} 28. Rh4 {[%emt 0:00:29]} Nf6 $2 {[%emt 0:20:11]} (28... Rc3 $1 $14 29. Bh6+ Ke8) 29. e5 $18 {[%emt 0:02:02]} dxe5 {[%emt 0:11:33] [#]} 30. dxe5 {[%emt 0:01:10]} (30. Bh6+ $1 $18 Kf7 31. dxe5) 30... Nd7 $2 {[%emt 0:00:37]} (30... Ng8 $16 {might work better.}) 31. Bf4 {[%emt 0:02:15]} ({Not} 31. Rxg4 Rf7 32. Be3 Ke7 $16) 31... Rc3 {[%emt 0:01:42]} (31... Rd3 $142 32. Rxg4 Kf7) 32. Rxg4 {[%emt 0:01:01]} Rc2+ {[%emt 0:00:09]} 33. Kh3 {[%emt 0:00:09]} Rxa2 {[%emt 0:00:46]} 34. Bh6+ {[%emt 0:00:23]} Ke8 {[%emt 0:00:10]} 35. Rg8+ {[%emt 0:00:29]} Ke7 {[%emt 0:00:15]} 36. Rg7+ {[%emt 0:01:02]} Ke8 {[%emt 0:00:02]} 37. Rxh7 {[%emt 0:01:04]} Nxe5 {[%emt 0:00:57]} 38. Rxc7 {[%emt 0:02:45]} Nf7 {[%emt 0:00:16]} 39. Bg7 {[%emt 0:01:39]} e5 {[%emt 0:00:28]} 40. h6 {[%emt 0:00:00] And now g4 would win.} e4 {[%emt 0:00:00]} 41. Bf6 $2 {[%emt 0:05:08]} (41. Rc6 $18 {has better winning chances.}) 41... Nxh6 $16 {[%emt 0:00:42]} 42. Re7+ {[%emt 0:00:09]} Kf8 {[%emt 0:00:03]} 43. Rxe4 {[%emt 0:00:11]} Kf7 {[%emt 0:00:15]} 44. Bg5 {[%emt 0:03:07]} Nf5 {[%emt 0:00:12]} (44... Kg6 $142) 45. Kg4 {[%emt 0:00:33]} Ng7 {[%emt 0:00:20]} 46. Re7+ {[%emt 0:00:31]} Kg6 {[%emt 0:00:03]} 47. Bf4 {[%emt 0:01:04] Black must now prevent Be5.} Kf6 {[%emt 0:00:18]} 48. Rb7 {[%emt 0:00:39] White is more active.} (48. Re3 $142) 48... Ne6 {[%emt 0:00:06]} 49. Bb8 {[%emt 0:06:17]} Nc5 {[%emt 0:00:02][%csl LRb3,LRb7]} 50. Rxa7 {[%emt 0:00:09]} Rb2 {[%emt 0:00:14]} 51. Rc7 {[%emt 0:00:20]} (51. Rh7 $16 {Hoping for Rh6+.} Rxb3 52. Rh6+ Kf7 53. Rh7+ Kf6 54. Rh5) 51... Rxb3 $11 {[%emt 0:00:22]} 52. Rc6+ {[%emt 0:00:14]} Kf7 {[%emt 0:00:47]} (52... Ne6 $14) 53. Bc7 {[%emt 0:01:51]} Nd7 {[%emt 0:00:09]} 54. Kg5 {[%emt 0:01:09]} b5 {[%emt 0:00:07]} 55. c5 {[%emt 0:06:33]} Rc3 {[%emt 0:00:23]} 56. Bd6 {[%emt 0:08:18]} b4 {[%emt 0:00:02]} (56... Ke6 $11) 57. Rb6 {[%emt 0:06:18]} b3 {[%emt 0:03:01][%mdl 1024] Black has compensation.} 58. Rb5 {[%emt 0:04:07]} Ke6 {[%emt 0:00:46]} 59. g4 {[%emt 0:01:57]} Kd5 {[%emt 0:01:21]} 60. Kg6 {[%emt 0:05:24]} Kc6 {[%emt 0:17:49]} 61. Rb4 {[%emt 0:00:41]} Rd3 {[%emt 0:03:14]} 62. g5 {[%emt 0:01:32]} Nxc5 {[%emt 0:00:19]} 63. Be5 {[%emt 0:00:20]} Kd5 {[%emt 0:04:24]} 64. Bh8 {[%emt 0:02:06]} Ne4 {[%emt 0:00:40]} 65. Bf6 {[%emt 0:00:54]} Nd6 {[%emt 0:00:13]} 66. Kh7 {[%emt 0:01:23]} Rh3+ {[%emt 0:01:52]} 67. Kg7 {[%emt 0:00:19]} Rf3 {[%emt 0:04:14]} 68. Kg8 {[%emt 0:02:30]} Kc5 {[%emt 0:02:51]} 69. Rg4 {[%emt 0:01:06]} Nf5 {[%emt 0:01:21]} 70. Rg2 {[%emt 0:00:16]} Kc4 {[%emt 0:03:08]} 71. Rd2 {[%emt 0:00:19]} Ng3 {[%emt 0:00:42]} 72. Bb2 {[%emt 0:00:26]} Nf1 {[%emt 0:04:40]} 73. Rd4+ {[%emt 0:00:54]} Kc5 {[%emt 0:00:03]} 74. Rg4 {[%emt 0:00:35]} Ne3 {[%emt 0:03:08]} 75. Bd4+ {[%emt 0:00:32]} Kb5 {[%emt 0:00:23]} 76. Rg1 {[%emt 0:00:35]} Nf5 {[%emt 0:00:31]} 77. Be5 {[%emt 0:00:30]} Ne7+ {[%emt 0:00:31]} 78. Kg7 {[%emt 0:00:23]} Kc4 {[%emt 0:00:18]} 79. Rd1 {[%emt 0:00:44]} Nf5+ {[%emt 0:01:01]} 80. Kh7 {[%emt 0:00:26]} Ne3 {[%emt 0:01:08]} 81. Rg1 {[%emt 0:00:35]} Kd5 {[%emt 0:00:09]} 82. Bh8 {[%emt 0:00:31]} Ke6 {[%emt 0:00:25]} 83. Rh1 {[%emt 0:00:28]} Ng4 {[%emt 0:01:51]} 84. g6 {[%emt 0:00:09]} Rd3 $2 {[%emt 0:01:34][%mdl 8192]} (84... Nf6+ $2 85. Bxf6 Kxf6 86. g7 $18) (84... Rg3 $11) 85. Re1+ $2 {[%emt 0:00:29]} ({White should play} 85. Ba1 $18) 85... Kf5 {[%emt 0:00:06]} 86. Rf1+ {[%emt 0:00:45]} Kg5 {[%emt 0:00:03]} (86... Ke6 $11 {remains equal.}) 87. Rf7 {[%emt 0:00:29]} (87. Bb2 $16 Rh3+ 88. Kg7) 87... Rh3+ {[%emt 0:00:17] The position is equal.} 88. Kg7 {[%emt 0:00:25]} Rh6 {[%emt 0:00:53]} 89. Rb7 {[%emt 0:00:11]} Rxg6+ {[%emt 0:00:21]} 90. Kf8 {[%emt 0:01:36]} Rh6 {[%emt 0:00:32]} 91. Bc3 {[%emt 0:00:00]} Kf5 {[%emt 0:02:28]} 92. Rxb3 {[%emt 0:00:00]} Rh7 {[%emt 0:00:14]} 93. Bg7 {[%emt 0:00:00] Weighted Error Value: White=0.27 (precise) /Black=0.30} 1/2-1/2

[Event "1st Chessable Sunway Formentera 2022"]
[Site "Formentera Punta Prima"]
[Date "2022.05.08"]
[Round "10.17"]
[White "Moreno Cervera, Jose Luis"]
[Black "Dadashpour, Mohammad Yaser"]
[Result "0-1"]
[ECO "A45"]
[WhiteElo "1802"]
[BlackElo "1604"]
[Annotator "NA RC COMBH"]
[PlyCount "92"]
[EventDate "2022.05.05"]
[EventType "swiss"]
[EventCountry "ESP"]
[SourceTitle "playchess.com"]
[Source "ChessBase"]
[SourceQuality "1"]
[TimeControl "40/5400+30:1800+30"]

1. d4 {[%emt 0:00:44]} Nf6 {[%emt 0:00:16]} 2. Bf4 {[%emt 0:00:06]} c5 {[%emt 0:00:26]} 3. e3 {[%emt 0:00:30]} Qb6 {[%emt 0:00:48]} 4. Nc3 {[%emt 0:00:29]} d6 {[%emt 0:01:01]} 5. a3 {[%emt 0:07:23]} g6 {[%emt 0:01:33]} 6. Nf3 {[%emt 0:11:16]} Bg7 {[%emt 0:01:49]} 7. Be2 {[%emt 0:03:11]} O-O {[%emt 0:06:42]} 8. O-O {[%emt 0:02:36]} Nbd7 {[%emt 0:07:16]} 9. Na4 {[%emt 0:07:22]} Qa5 {[%emt 0:08:20]} 10. c3 {[%emt 0:01:38]} b5 {[%emt 0:04:01]} 11. dxc5 {[%emt 0:06:42]} bxa4 {[%emt 0:12:48]} 12. cxd6 {[%emt 0:03:28]} exd6 {[%emt 0:04:39]} 13. Qxd6 {[%emt 0:05:32]} Qb6 {[%emt 0:02:28]} 14. Nd4 {[%emt 0:06:33]} Bb7 {[%emt 0:09:24]} 15. Qb4 {[%emt 0:04:23]} Nd5 {[%emt 0:04:19]} 16. Qxa4 {[%emt 0:02:47]} Nc5 {[%emt 0:04:44]} 17. Qb5 {[%emt 0:02:32]} Nxf4 {[%emt 0:01:17]} 18. exf4 {[%emt 0:00:17]} Bxd4 {[%emt 0:02:13]} 19. cxd4 {[%emt 0:01:36]} Qxb5 {[%emt 0:00:30]} 20. Bxb5 {[%emt 0:00:02]} Ne6 {[%emt 0:00:38]} 21. Rfc1 {[%emt 0:12:32]} Nxd4 {[%emt 0:01:45]} 22. Bc4 {[%emt 0:03:49]} a5 {[%emt 0:01:22]} 23. Rd1 {[%emt 0:01:46]} Rfd8 {[%emt 0:01:54]} 24. Rac1 {[%emt 0:01:47]} Rac8 {[%emt 0:02:15]} 25. Kf1 {[%emt 0:00:47]} Nf5 {[%emt 0:02:32]} 26. b3 {[%emt 0:04:42]} a4 {[%emt 0:07:02]} 27. g4 {[%emt 0:00:26]} Nd6 {[%emt 0:00:55]} 28. Ke2 {[%emt 0:03:11]} Re8+ {[%emt 0:02:49]} 29. Kf1 {[%emt 0:01:20]} Nxc4 {[%emt 0:00:42]} 30. bxc4 {[%emt 0:00:21]} Ba6 {[%emt 0:01:13]} 31. Rd4 {[%emt 0:00:22]} Rxc4 {[%emt 0:01:58]} 32. Rcxc4 {[%emt 0:00:50]} Rc8 {[%emt 0:00:08]} 33. Kg2 {[%emt 0:00:16]} Rxc4 {[%emt 0:01:10]} 34. Rxc4 {[%emt 0:01:43]} Bxc4 {[%emt 0:00:02]} 35. Kg3 {[%emt 0:00:54]} f6 {[%emt 0:00:09]} 36. h4 {[%emt 0:00:11]} Kf7 {[%emt 0:00:23]} 37. Kf3 {[%emt 0:00:09]} Ke6 {[%emt 0:00:43]} 38. Ke3 {[%emt 0:00:13]} f5 {[%emt 0:00:59]} 39. f3 {[%emt 0:03:59]} Kd5 {[%emt 0:00:46]} 40. h5 {[%emt 0:00:00]} gxh5 {[%emt 0:00:00]} 41. gxf5 {[%emt 0:06:43]} h4 {[%emt 0:03:35]} 42. Kf2 {[%emt 0:01:00]} h3 {[%emt 0:00:09]} 43. Kg3 {[%emt 0:00:20]} Bf1 {[%emt 0:00:02]} 44. Kh2 {[%emt 0:00:27]} Kd6 {[%emt 0:00:35]} 45. Kg1 {[%emt 0:00:58]} Bg2 {[%emt 0:00:01]} 46. Kf2 {[%emt 0:00:09]} Kd5 {[%emt 0:35:09]} 0-1